fUST/lending_fUST_20260117
["ID","MTS","AMOUNT","RATE_DAILY","PERIOD"]
[402312059,1768654239138,-500.0,0.00013698,2]
[402312060,1768654239149,-500.0,0.00013698,2]
[402312061,1768654239160,-500.0,0.00013698,2]
[402312062,1768654239171,-500.0,0.00013698,2]
[402312063,1768654239181,-619.57929462,0.00013698,2]
[402312064,1768654239191,-500.0,0.00013698,2]
[402312065,1768654239205,-500.0,0.00013698,2]
[402312066,1768654239215,-500.0,0.00013698,2]
[402312067,1768654239224,-500.0,0.00013698,2]
[402312068,1768654239234,-500.0,0.00013698,2]
[402312069,1768654239243,-500.0,0.00013698,2]
[402312070,1768654239253,-254.16822598,0.00013698,2]
[402312071,1768654239263,-1000.0,0.00013698,2]
[402312072,1768654239272,-1000.0,0.00013698,2]
[402312073,1768654239282,-1000.0,0.00013698,2]
[402312074,1768654239751,-1000.0,0.00013698,2]
[402312075,1768654239776,-1000.0,0.00013698,2]
[402312076,1768654239802,-1000.0,0.00013698,2]
[402312077,1768654239824,-1000.0,0.00013698,2]
[402312078,1768654239835,-1019.17213815,0.00013698,2]
[402312079,1768654239844,-500.0,0.00013698,2]
[402312080,1768654239855,-500.0,0.00013698,2]
[402312081,1768654239867,-500.0,0.00013698,2]
[402312082,1768654239876,-500.0,0.00013698,2]
[402312083,1768654239885,-500.0,0.00013698,2]
[402312084,1768654239895,-500.0,0.00013698,2]
[402312085,1768654239904,-500.0,0.00013698,2]
[402312086,1768654239914,-500.0,0.00013699,2]
[402312087,1768654239924,-58387.6423223,0.00013699,2]
[402312088,1768654239934,-1000.0,0.00013699,2]
[402312089,1768654239942,-101719.4259045,0.00013699,2]
[402312090,1768654239952,-313.78216061,0.00013699,2]
[402312091,1768654239961,-1152.0,0.00013749,2]
[402312092,1768654239971,-577.86190151,0.00013821,2]
[402312093,1768654239980,-6587.36910261,0.00013844,2]
[402312094,1768654239989,-100000.0,0.00014006,2]
[402312095,1768654239999,-597.5,0.0001441,2]
[402312096,1768654240009,-1974.72,0.00014509,2]
[402312097,1768654240019,-5000.0,0.0001451,2]
[402312098,1768654240029,-500.0,0.00014932,2]
[402312099,1768654240049,-500.0,0.00015069,2]
[402312100,1768654240061,-1613.0,0.00015124,2]
[402312101,1768654240070,-500.0,0.00015206,2]
[402312102,1768654240080,-437.64591247,0.00015302,2]
[402312103,1768654240090,-274.59534775,0.00015343,2]
[402312104,1768654240100,-6587.36910261,0.00015617,2]
[402312105,1768654240111,-500.0,0.00015749,30]
[402312106,1768654240122,-500.0,0.00015749,30]
[402312107,1768654240132,-500.0,0.00015749,30]
[402312109,1768654240142,-500.0,0.00015749,30]
[402312111,1768654240153,-500.0,0.00015749,30]
[402312112,1768654240162,-500.0,0.00015749,30]
[402312113,1768654240172,-500.0,0.00015749,30]
[402312114,1768654240182,-500.0,0.00015749,30]
[402312115,1768654240192,-500.0,0.00015749,30]
[402312116,1768654240202,-429.0582887,0.00015749,30]
[402312117,1768654240212,-156.47426594,0.00015749,30]
[402312118,1768654240222,-5675.754368,0.00016,2]
[402312119,1768654240233,-1974.72,0.00016048,2]
[402312120,1768654240243,-11369.77347476,0.00016338,2]
[402312121,1768654240253,-500.0,0.000164,10]
[402312122,1768654240263,-180.95,0.00016437,2]
[402312123,1768654240273,-1974.72,0.00016437,2]
[402312124,1768654240282,-1974.72,0.00016437,2]
[402312125,1768654240292,-1974.72,0.00016437,2]
[402312126,1768654240302,-1974.72,0.00016437,2]
[402312127,1768654240312,-1974.72,0.00016437,2]
[402312128,1768654240322,-1974.72,0.00016437,2]
[402312129,1768654240331,-1974.72,0.00016437,2]
[402312130,1768654240341,-1974.72,0.00016437,2]
[402312131,1768654240351,-1974.72,0.00016437,2]
[402312133,1768654240360,-1974.72,0.00016437,2]
[402312134,1768654240370,-1974.72,0.00016437,2]
[402312135,1768654240380,-1974.90222486,0.00016437,2]
[402312136,1768654240389,-500.0,0.00016438,3]
[402312137,1768654240399,-500.0,0.00016438,3]
[402312138,1768654240408,-500.0,0.00016438,3]
[402312139,1768654240418,-500.0,0.00016438,3]
[402312140,1768654240428,-554.19378487,0.00016438,3]
[402312141,1768654240442,-500.0,0.00016438,3]
[402312142,1768654240451,-500.0,0.00016438,3]
[402312143,1768654240461,-500.0,0.00016438,3]
[402312144,1768654240471,-518.42,0.00016438,3]
[402312145,1768654240481,-500.0,0.00016438,3]
[402312146,1768654240491,-500.0,0.00016438,3]
[402312147,1768654240501,-500.0,0.00016438,3]
[402312148,1768654240511,-500.0,0.00016438,3]
[402312150,1768654240521,-1051.68,0.00016438,3]
[402312151,1768654240530,-819.05922748,0.00016438,3]
[402312152,1768654240539,-523.17,0.00016438,3]
[402312153,1768654240549,-500.0,0.00016438,3]
[402312154,1768654240558,-500.0,0.00016438,3]
[402312155,1768654240568,-500.0,0.00016438,3]
[402312156,1768654240578,-561.41,0.00016438,3]
[402312157,1768654240587,-500.0,0.00016438,3]
[402312158,1768654240597,-754.67,0.00016438,3]
[402312159,1768654240606,-500.0,0.00016438,3]
[402312160,1768654240615,-500.0,0.00016438,3]
[402312161,1768654240625,-500.0,0.00016438,3]
[402312163,1768654240634,-500.0,0.00016438,3]
[402312165,1768654240644,-500.0,0.00016438,3]
[402312167,1768654240653,-500.0,0.00016438,3]
[402312169,1768654240662,-500.0,0.00016438,3]
[402312172,1768654240672,-500.0,0.00016438,3]
[402312174,1768654240681,-545.66,0.00016438,3]
[402312176,1768654240691,-500.0,0.00016438,3]
[402312178,1768654240700,-500.0,0.00016438,3]
[402312180,1768654240709,-500.0,0.00016438,3]
[402312182,1768654240718,-500.0,0.00016438,3]
[402312184,1768654240727,-500.0,0.00016438,3]
[402312186,1768654240737,-693.59,0.00016438,3]
[402312188,1768654240746,-500.0,0.00016438,3]
[402312190,1768654240755,-500.0,0.00016438,3]
[402312192,1768654240764,-500.0,0.00016438,3]
[402312194,1768654240773,-500.0,0.00016438,3]
[402312195,1768654240783,-500.0,0.00016438,3]
[402312198,1768654240792,-1084.5,0.00016438,3]
[402312200,1768654240802,-521.08,0.00016438,3]
[402312202,1768654240811,-614.18,0.00016438,3]
[402312204,1768654240821,-725.46,0.00016438,3]
[402312206,1768654240831,-500.0,0.00016438,3]
[402312208,1768654240841,-717.45,0.00016438,3]
[402312210,1768654240850,-500.0,0.00016438,3]
[402312212,1768654240860,-500.0,0.00016438,3]
[402312214,1768654240869,-500.0,0.00016438,3]
[402312216,1768654240879,-500.0,0.00016438,3]
[402312218,1768654240888,-500.0,0.00016438,3]
[402312221,1768654240897,-500.0,0.00016438,3]
[402312224,1768654240907,-629.47,0.00016438,3]
[402312226,1768654240916,-500.0,0.00016438,3]
[402312229,1768654240925,-500.0,0.00016438,3]
[402312231,1768654240935,-516.49,0.00016438,3]
[402312233,1768654240944,-500.0,0.00016438,3]
[402312235,1768654240954,-500.0,0.00016438,3]
[402312237,1768654240963,-500.0,0.00016438,3]
[402312239,1768654240973,-732.63,0.00016438,3]
[402312241,1768654240982,-514.03,0.00016438,3]
[402312243,1768654240992,-500.0,0.00016438,3]
[402312245,1768654241001,-500.0,0.00016438,3]
[402312247,1768654241011,-500.0,0.00016438,3]
[402312249,1768654241021,-500.0,0.00016438,3]
[402312251,1768654241031,-500.0,0.00016438,3]
[402312253,1768654241041,-862.55,0.00016438,3]
[402312255,1768654241050,-755.21,0.00016438,3]
[402312257,1768654241059,-500.0,0.00016438,3]
[402312259,1768654241069,-500.0,0.00016438,3]
[402312261,1768654241078,-264.29964932,0.00016438,3]
[402312263,1768654241088,-1004.78009265,0.00016438,2]
[402312265,1768654241097,-910.78,0.00016438,3]
[402312267,1768654241107,-1427.04,0.00016438,3]
[402312269,1768654241117,-500.0,0.00016438,3]
[402312271,1768654241126,-500.0,0.00016438,3]
[402312273,1768654241136,-500.0,0.00016438,3]
[402312275,1768654241145,-500.0,0.00016438,3]
[402312277,1768654241155,-500.0,0.00016438,3]
[402312279,1768654241164,-500.0,0.00016438,3]
[402312281,1768654241174,-500.0,0.00016438,3]
[402312283,1768654241183,-500.0,0.00016438,3]
[402312285,1768654241193,-500.0,0.00016438,3]
[402312287,1768654241203,-500.0,0.00016438,3]
[402312289,1768654241213,-739.23,0.00016438,3]
[402312291,1768654241222,-500.0,0.00016438,3]
[402312293,1768654241231,-500.0,0.00016438,3]
[402312295,1768654241241,-500.0,0.00016438,3]
[402312297,1768654241250,-500.0,0.00016438,3]
[402312299,1768654241260,-500.0,0.00016438,3]
[402312301,1768654241270,-500.0,0.00016438,3]
[402312303,1768654241279,-653.76,0.00016438,3]
[402312305,1768654241288,-500.0,0.00016438,3]
[402312307,1768654241298,-500.0,0.00016438,3]
[402312309,1768654241307,-500.0,0.00016438,3]
[402312311,1768654241316,-500.0,0.00016438,3]
[402312313,1768654241326,-807.61,0.00016438,3]
[402312315,1768654241335,-732.55,0.00016438,3]
[402312317,1768654241344,-545.11,0.00016438,3]
[402312319,1768654241354,-500.0,0.00016438,3]
[402312321,1768654241363,-500.0,0.00016438,3]
[402312323,1768654241373,-500.0,0.00016438,3]
[402312325,1768654241382,-702.95,0.00016438,3]
[402312327,1768654241391,-500.0,0.00016438,3]
[402312329,1768654241401,-816.89,0.00016438,3]
[402312331,1768654241410,-500.0,0.00016438,3]
[402312333,1768654241420,-175.73098182,0.00016438,3]
[402312335,1768654241430,-500.0,0.00016438,3]
[402312337,1768654241447,-500.0,0.00016438,3]
[402312339,1768654241456,-500.0,0.00016438,3]
[402312341,1768654241466,-575.45,0.00016438,3]
[402312343,1768654241475,-500.0,0.00016438,3]
[402312345,1768654241486,-500.0,0.00016438,3]
[402312347,1768654241495,-945.26,0.00016438,3]
[402312349,1768654241504,-500.0,0.00016438,3]
[402312351,1768654241514,-500.0,0.00016438,3]
[402312353,1768654241524,-500.0,0.00016438,3]
[402312355,1768654241533,-886.15,0.00016438,3]
[402312357,1768654241542,-500.0,0.00016438,3]
[402312359,1768654241552,-500.0,0.00016438,3]
[402312361,1768654241563,-224.14161596,0.00016438,3]
[402312363,1768654241572,-620.18,0.00016438,3]
[402312365,1768654241581,-500.0,0.00016438,3]
[402312367,1768654241591,-500.0,0.00016438,3]
[402312370,1768654241601,-500.0,0.00016438,3]
[402312372,1768654241610,-807.21,0.00016438,3]
[402312374,1768654241619,-1239.96,0.00016438,3]
[402312375,1768654241631,-500.0,0.00016438,3]
[402312378,1768654241641,-1145.63,0.00016438,3]
[402312380,1768654241650,-500.0,0.00016438,3]
[402312382,1768654241659,-500.0,0.00016438,3]
[402312384,1768654241669,-348.04789676,0.00016438,3]
[402312386,1768654241678,-500.0,0.00016438,3]
[402312387,1768654241687,-500.0,0.00016438,3]
[402312388,1768654241696,-500.0,0.00016438,3]
[402312390,1768654241706,-500.0,0.00016438,3]
[402312392,1768654241715,-500.0,0.00016438,3]
[402312394,1768654241725,-500.0,0.00016438,3]
[402312396,1768654241734,-500.0,0.00016438,3]
[402312398,1768654241744,-500.0,0.00016438,3]
[402312401,1768654241754,-549.06,0.00016438,3]
[402312402,1768654241763,-500.0,0.00016438,3]
[402312405,1768654241773,-500.0,0.00016438,3]
[402312407,1768654241783,-500.0,0.00016438,3]
[402312409,1768654241793,-500.0,0.00016438,3]
[402312411,1768654241802,-500.0,0.00016438,3]
[402312413,1768654241811,-500.0,0.00016438,3]
[402312415,1768654241820,-500.0,0.00016438,3]
[402312417,1768654241829,-500.0,0.00016438,3]
[402312419,1768654241839,-592.71890736,0.00016438,3]
[402312420,1768654241848,-1338.64,0.00016438,3]
[402312423,1768654241858,-500.0,0.00016438,3]
[402312424,1768654241867,-500.0,0.00016438,3]
[402312426,1768654241876,-1311.72,0.00016438,3]
[402312429,1768654241886,-957.83,0.00016438,3]
[402312431,1768654241895,-500.0,0.00016438,3]
[402312432,1768654241905,-500.0,0.00016438,3]
[402312435,1768654241915,-1184.54,0.00016438,3]
[402312436,1768654241924,-306.16209203,0.00016438,3]
[402312438,1768654241934,-500.0,0.00016438,3]
[402312440,1768654241943,-500.0,0.00016438,3]
[402312442,1768654241953,-690.6,0.00016438,3]
[402312444,1768654241962,-648.78,0.00016438,3]
[402312446,1768654241972,-500.0,0.00016438,3]
[402312448,1768654241981,-616.41,0.00016438,3]
[402312451,1768654241991,-500.0,0.00016438,3]
[402312452,1768654242001,-615.61,0.00016438,3]
[402312454,1768654242011,-500.0,0.00016438,3]
[402312456,1768654242020,-500.0,0.00016438,3]
[402312458,1768654242029,-500.0,0.00016438,3]
[402312460,1768654242039,-691.31,0.00016438,3]
[402312462,1768654242049,-854.07,0.00016438,3]
[402312464,1768654242059,-500.0,0.00016438,3]
[402312466,1768654242068,-1006.6,0.00016438,3]
[402312468,1768654242078,-1183.28,0.00016438,3]
[402312470,1768654242088,-500.0,0.00016438,3]
[402312472,1768654242097,-500.0,0.00016438,3]
[402312474,1768654242106,-556.14,0.00016438,3]
[402312476,1768654242116,-710.83,0.00016438,3]
[402312477,1768654242125,-500.0,0.00016438,3]
[402312479,1768654242135,-529.79,0.00016438,3]
[402312481,1768654242145,-500.0,0.00016438,3]
[402312484,1768654242155,-500.0,0.00016438,3]
[402312485,1768654242165,-1070.23,0.00016438,3]
[402312487,1768654242174,-500.0,0.00016438,3]
[402312489,1768654242184,-617.37,0.00016438,3]
[402312491,1768654242193,-500.0,0.00016438,3]
[402312494,1768654242203,-699.77,0.00016438,3]
[402312495,1768654242212,-683.13,0.00016438,3]
[402312497,1768654242222,-500.0,0.00016438,3]
[402312499,1768654242232,-500.0,0.00016438,3]
[402312501,1768654242241,-500.0,0.00016438,3]
[402312504,1768654242251,-666.01,0.00016438,3]
[402312505,1768654242260,-500.0,0.00016438,3]
[402312507,1768654242269,-1637.75,0.00016438,3]
[402312509,1768654242278,-500.0,0.00016438,3]
[402312511,1768654242288,-500.0,0.00016438,3]
[402312513,1768654242297,-602.87,0.00016438,3]
[402312515,1768654242306,-556.25,0.00016438,3]
[402312518,1768654242317,-500.0,0.00016438,3]
[402312519,1768654242326,-500.0,0.00016438,3]
[402312521,1768654242335,-500.0,0.00016438,3]
[402312523,1768654242344,-1000.0,0.00016438,2]
[402312525,1768654242354,-500.0,0.00016438,3]
[402312527,1768654242365,-500.0,0.00016438,3]
[402312530,1768654242374,-995.58,0.00016438,3]
[402312531,1768654242384,-500.0,0.00016438,3]
[402312533,1768654242393,-639.94,0.00016438,3]
[402312535,1768654242402,-500.0,0.00016438,3]
[402312538,1768654242412,-711.02,0.00016438,3]
[402312539,1768654242421,-741.6,0.00016438,3]
[402312542,1768654242431,-500.0,0.00016438,3]
[402312543,1768654242443,-635.72,0.00016438,3]
[402312545,1768654242453,-500.0,0.00016438,3]
[402312547,1768654242463,-500.0,0.00016438,3]
[402312549,1768654242472,-500.0,0.00016438,3]
[402312551,1768654242482,-837.25,0.00016438,3]
[402312553,1768654242491,-1246.55,0.00016438,3]
[402312555,1768654242500,-741.68,0.00016438,3]
[402312557,1768654242512,-500.0,0.00016438,3]
[402312559,1768654242521,-500.0,0.00016438,3]
[402312582,1768654242717,-1039.73,0.00016438,3]
[402312584,1768654242730,-683.7,0.00016438,3]
[402312586,1768654242740,-1329.31,0.00016438,3]
[402312588,1768654242750,-859.83,0.00016438,3]
[402312590,1768654242759,-500.0,0.00016438,3]
[402312592,1768654242769,-500.0,0.00016438,3]
[402312594,1768654242784,-500.0,0.00016438,3]
[402312596,1768654242794,-1344.21,0.00016438,3]
[402312598,1768654242803,-500.0,0.00016438,3]
[402312600,1768654242813,-1802.28,0.00016438,3]
[402312602,1768654242822,-500.0,0.00016438,3]
[402312604,1768654242836,-379.25255787,0.00016438,3]
[402312606,1768654242855,-500.0,0.00016438,3]
[402312608,1768654242866,-500.0,0.00016438,3]
[402312610,1768654242875,-500.0,0.00016438,3]
[402312612,1768654242885,-500.0,0.00016438,3]
[402312614,1768654242895,-500.0,0.00016438,3]
[402312616,1768654242911,-500.0,0.00016438,3]
[402312618,1768654242932,-500.0,0.00016438,3]
[402312620,1768654242943,-500.0,0.00016438,3]
[402312622,1768654242953,-1027.41,0.00016438,3]
[402312624,1768654242963,-500.0,0.00016438,3]
[402312626,1768654242976,-1004.76,0.00016438,3]
[402312628,1768654242986,-500.0,0.00016438,3]
[402312630,1768654242996,-500.0,0.00016438,3]
[402312632,1768654243006,-500.0,0.00016438,3]
[402312633,1768654243017,-500.0,0.00016438,3]
[402312635,1768654243034,-500.0,0.00016438,3]
[402312638,1768654243054,-500.0,0.00016438,3]
[402312640,1768654243075,-772.61,0.00016438,3]
[402312643,1768654243093,-500.0,0.00016438,3]
[402312648,1768654243106,-500.0,0.00016438,3]
[402312650,1768654243118,-500.0,0.00016438,3]
[402312652,1768654243130,-1254.59,0.00016438,3]
[402312654,1768654243142,-500.0,0.00016438,3]
[402312656,1768654243153,-500.0,0.00016438,3]
[402312659,1768654243163,-674.15,0.00016438,3]
[402312663,1768654243175,-500.0,0.00016438,3]
[402312667,1768654243185,-862.97,0.00016438,3]
[402312668,1768654243195,-500.0,0.00016438,3]
[402312671,1768654243205,-1424.21,0.00016438,3]
[402312673,1768654243215,-500.0,0.00016438,3]
[402312675,1768654243225,-500.0,0.00016438,3]
[402312677,1768654243234,-500.0,0.00016438,3]
[402312679,1768654243243,-500.0,0.00016438,3]
[402312681,1768654243253,-500.0,0.00016438,3]
[402312685,1768654243263,-564.79,0.00016438,3]
[402312688,1768654243272,-500.0,0.00016438,3]
[402312690,1768654243282,-500.0,0.00016438,3]
[402312692,1768654243292,-1146.6,0.00016438,3]
[402312694,1768654243301,-500.0,0.00016438,3]
[402312696,1768654243311,-500.0,0.00016438,3]
[402312698,1768654243320,-500.0,0.00016438,3]
[402312700,1768654243330,-500.0,0.00016438,3]
[402312702,1768654243339,-500.0,0.00016438,3]
[402312704,1768654243349,-500.0,0.00016438,3]
[402312706,1768654243358,-760.29,0.00016438,3]
[402312708,1768654243367,-1265.22,0.00016438,3]
[402312710,1768654243377,-500.0,0.00016438,3]
[402312712,1768654243386,-500.0,0.00016438,3]
[402312714,1768654243396,-7943.43,0.00016438,3]
[402312716,1768654243406,-500.0,0.00016438,3]
[402312718,1768654243416,-500.0,0.00016438,3]
[402312720,1768654243426,-500.0,0.00016438,3]
[402312722,1768654243438,-500.0,0.00016438,3]
[402312724,1768654243447,-172.631544,0.00016438,3]
[402312726,1768654243457,-707.0,0.00016438,3]
[402312728,1768654243467,-719.76,0.00016438,3]
[402312730,1768654243478,-500.0,0.00016438,3]
[402312732,1768654243487,-500.0,0.00016438,3]
[402312734,1768654243496,-500.0,0.00016438,3]
[402312735,1768654243506,-500.0,0.00016438,3]
[402312737,1768654243515,-158.856128,0.00016438,3]
[402312739,1768654243524,-729.49,0.00016438,3]
[402312741,1768654243534,-500.0,0.00016438,3]
[402312743,1768654243543,-500.0,0.00016438,3]
[402312745,1768654243552,-310.90446794,0.00016438,3]
[402312747,1768654243561,-500.0,0.00016438,3]
[402312749,1768654243570,-500.0,0.00016438,3]
[402312751,1768654243580,-2683.36,0.00016438,3]
[402312753,1768654243590,-541.79,0.00016438,3]
[402312755,1768654243599,-603.0,0.00016438,3]
[402312757,1768654243609,-500.0,0.00016438,3]
[402312759,1768654243619,-500.0,0.00016438,3]
[402312761,1768654243628,-500.0,0.00016438,3]
[402312763,1768654243637,-500.0,0.00016438,3]
[402312765,1768654243647,-197.20286288,0.00016438,3]
[402312767,1768654243656,-663.74,0.00016438,3]
[402312769,1768654243666,-500.0,0.00016438,3]
[402312771,1768654243675,-1421.98,0.00016438,3]
[402312773,1768654243685,-649.83,0.00016438,3]
[402312775,1768654243695,-500.0,0.00016438,3]
[402312777,1768654243704,-568.79,0.00016438,3]
[402312780,1768654243713,-961.05,0.00016438,3]
[402312782,1768654243723,-735.06,0.00016438,3]
[402312784,1768654243732,-500.0,0.00016438,3]
[402312787,1768654243741,-500.0,0.00016438,3]
[402312789,1768654243750,-1177.76,0.00016438,3]
[402312791,1768654243760,-841.76,0.00016438,3]
[402312793,1768654243769,-1139.87,0.00016438,3]
[402312795,1768654243778,-309.96810054,0.00016438,3]
[402312797,1768654243787,-500.0,0.00016438,3]
[402312799,1768654243797,-967.76,0.00016438,3]
[402312801,1768654243806,-500.0,0.00016438,3]
[402312803,1768654243815,-500.0,0.00016438,3]
[402312805,1768654243824,-500.0,0.00016438,3]
[402312807,1768654243833,-765.95,0.00016438,3]
[402312809,1768654243842,-423.66716387,0.00016438,3]
[402312811,1768654243852,-1216.44,0.00016438,3]
[402312813,1768654243861,-500.0,0.00016438,3]
[402312815,1768654243870,-500.0,0.00016438,3]
[402312817,1768654243879,-624.22,0.00016438,3]
[402312819,1768654243889,-608.74,0.00016438,3]
[402312820,1768654243898,-500.0,0.00016438,3]
[402312822,1768654243907,-1261.46,0.00016438,3]
[402312824,1768654243917,-500.0,0.00016438,3]
[402312827,1768654243927,-500.0,0.00016438,3]
[402312829,1768654243937,-500.0,0.00016438,3]
[402312831,1768654243946,-500.0,0.00016438,3]
[402312833,1768654243955,-626.49,0.00016438,3]
[402312835,1768654243964,-621.03,0.00016438,3]
[402312836,1768654243974,-500.0,0.00016438,3]
[402312838,1768654243983,-500.0,0.00016438,3]
[402312840,1768654243993,-635.32816024,0.00016438,3]
[402312842,1768654244003,-500.0,0.00016438,3]
[402312844,1768654244013,-500.0,0.00016438,3]
[402312847,1768654244025,-500.0,0.00016438,3]
[402312848,1768654244035,-500.0,0.00016438,3]
[402312851,1768654244046,-941.46,0.00016438,3]
[402312853,1768654244055,-500.0,0.00016438,3]
[402312855,1768654244064,-716.64,0.00016438,3]
[402312856,1768654244074,-1994.09,0.00016438,3]
[402312858,1768654244083,-500.34885324,0.00016438,3]
[402312860,1768654244093,-761.7,0.00016438,3]
[402312863,1768654244102,-500.0,0.00016438,3]
[402312864,1768654244112,-500.0,0.00016438,3]
[402312866,1768654244122,-583.36,0.00016438,3]
[402312868,1768654244131,-500.0,0.00016438,3]
[402312870,1768654244140,-970.67,0.00016438,3]
[402312872,1768654244150,-739.6,0.00016438,3]
[402312874,1768654244160,-829.26,0.00016438,3]
[402312876,1768654244169,-500.0,0.00016438,3]
[402312878,1768654244179,-505.43,0.00016438,3]
[402312880,1768654244188,-500.0,0.00016438,3]
[402312882,1768654244198,-500.0,0.00016438,3]
[402312885,1768654244207,-500.0,0.00016438,3]
[402312887,1768654244217,-500.0,0.00016438,3]
[402312889,1768654244227,-1019.41,0.00016438,3]
[402312890,1768654244236,-500.0,0.00016438,3]
[402312892,1768654244247,-500.0,0.00016438,3]
[402312893,1768654244256,-500.0,0.00016438,3]
[402312894,1768654244266,-524.56,0.00016438,3]
[402312895,1768654244276,-500.0,0.00016438,3]
[402312896,1768654244285,-362.08497691,0.00016438,3]
[402312897,1768654244295,-884.46,0.00016438,3]
[402312898,1768654244304,-5979.31,0.00016438,3]
[402312899,1768654244314,-610.24,0.00016438,3]
[402312900,1768654244324,-500.0,0.00016438,3]
[402312901,1768654244333,-500.0,0.00016438,3]
[402312902,1768654244343,-500.0,0.00016438,3]
[402312903,1768654244353,-500.0,0.00016438,3]
[402312904,1768654244362,-1046.6,0.00016438,3]
[402312905,1768654244372,-1081.52,0.00016438,3]
[402312906,1768654244381,-500.0,0.00016438,3]
[402312907,1768654244390,-675.46,0.00016438,3]
[402312908,1768654244400,-500.0,0.00016438,3]
[402312909,1768654244409,-783.66,0.00016438,3]
[402312910,1768654244418,-500.0,0.00016438,3]
[402312911,1768654244428,-737.81,0.00016438,3]
[402312912,1768654244442,-500.0,0.00016438,3]
[402312913,1768654244451,-1223.05,0.00016438,3]
[402312914,1768654244461,-954.51,0.00016438,3]
[402312915,1768654244470,-500.0,0.00016438,3]
[402312916,1768654244482,-694.5,0.00016438,3]
[402312917,1768654244491,-500.0,0.00016438,3]
[402312918,1768654244500,-500.0,0.00016438,3]
[402312919,1768654244510,-500.0,0.00016438,3]
[402312920,1768654244519,-688.77,0.00016438,3]
[402312921,1768654244529,-500.0,0.00016438,3]
[402312922,1768654244538,-500.0,0.00016438,3]
[402312923,1768654244547,-878.27,0.00016438,3]
[402312924,1768654244556,-500.0,0.00016438,3]
[402312925,1768654244565,-500.0,0.00016438,3]
[402312926,1768654244575,-500.0,0.00016438,3]
[402312927,1768654244584,-490.09113196,0.00016438,3]
[402312928,1768654244593,-500.0,0.00016438,3]
[402312929,1768654244603,-582.92,0.00016438,3]
[402312931,1768654244613,-1784.99,0.00016438,3]
[402312933,1768654244622,-566.84,0.00016438,3]
[402312935,1768654244631,-500.0,0.00016438,3]
[402312936,1768654244640,-857.64,0.00016438,3]
[402312938,1768654244649,-500.0,0.00016438,3]
[402312940,1768654244658,-228.06287454,0.00016438,3]
[402312942,1768654244667,-1444.61,0.00016438,3]
[402312944,1768654244676,-1200.0,0.00016438,2]
[402312946,1768654244685,-500.0,0.00016438,3]
[402312948,1768654244694,-500.0,0.00016438,3]
[402312950,1768654244703,-500.0,0.00016438,3]
[402312952,1768654244712,-500.0,0.00016438,3]
[402312954,1768654244721,-500.0,0.00016438,3]
[402312956,1768654244730,-554.04,0.00016438,3]
[402312958,1768654244739,-500.0,0.00016438,3]
[402312960,1768654244749,-550.49,0.00016438,3]